[Event "55th Rubinstein Memorial-C 2019"]
[Site "Polanica-Zdroj"]
[Date "2019.08.22"]
[Round "6.17"]
[White "Filipska, Maja"]
[Black "Matuszczyk, Mateusz"]
[Result "0-1"]
[ECO "A48"]
[WhiteElo "1605"]
[BlackElo "1808"]
[Annotator "NA"]
[PlyCount "82"]
[EventDate "2019.08.17"]
[EventType "swiss"]
[EventCountry "POL"]
[SourceTitle "playchess.com"]
[Source "ChessBase"]
[SourceQuality "1"]
[TimeControl "40/5400+30:1800+30"]

1. d4 {[%emt 0:00:00]} Nf6 {[%emt 0:00:00]} 2. Nf3 {[%emt 0:00:00]} g6 {[%emt 0:00:00]} 3. e3 {[%emt 0:00:27]} Bg7 {[%emt 0:02:03]} 4. Bd3 {[%emt 0:01:00]} d5 {[%emt 0:02:43]} 5. Nbd2 {[%emt 0:02:19]} c5 {[%emt 0:01:49]} 6. c3 {[%emt 0:02:52]} Nc6 {[%emt 0:01:18]} 7. O-O {[%emt 0:02:25]} O-O 8. Qe2 {[%emt 0:04:19]} b6 {[%emt 0:06:43]} 9. b3 {[%emt 0:06:07]} Qc7 {[%emt 0:02:10]} 10. Bb2 {[%emt 0:04:51]} e5 {[%emt 0:04:17]} 11. dxe5 {[%emt 0:03:26]} Nxe5 {[%emt 0:00:23]} 12. Nxe5 {[%emt 0:00:16]} Qxe5 {[%emt 0:00:02]} 13. Nf3 {[%emt 0:00:56]} Qc7 {[%emt 0:03:41]} 14. c4 {[%emt 0:02:05]} Re8 {[%emt 0:02:23]} 15. cxd5 {[%emt 0:01:49]} Nxd5 {[%emt 0:00:35]} 16. Bxg7 {[%emt 0:05:01]} Kxg7 {[%emt 0:00:04]} 17. Qb2+ {[%emt 0:01:02]} f6 {[%emt 0:05:13]} 18. Rfd1 {[%emt 0:04:48]} Bb7 {[%emt 0:00:31]} 19. Bc4 {[%emt 0:01:12]} Rad8 {[%emt 0:01:51]} 20. Rd2 {[%emt 0:03:08]} Nb4 {[%emt 0:02:28]} 21. Rad1 {[%emt 0:01:27]} Bxf3 {[%emt 0:01:15]} 22. gxf3 {[%emt 0:00:03]} Nc6 {[%emt 0:04:51]} 23. Bb5 {[%emt 0:10:14]} Rxd2 {[%emt 0:09:57]} 24. Rxd2 {[%emt 0:00:46]} Rd8 {[%emt 0:01:18]} 25. Rxd8 {[%emt 0:02:13]} Nxd8 {[%emt 0:00:19]} 26. Qd2 {[%emt 0:00:30]} Nc6 {[%emt 0:03:26]} 27. Bxc6 {[%emt 0:04:20]} Qxc6 {[%emt 0:00:07]} 28. Kg2 {[%emt 0:00:35]} b5 {[%emt 0:03:12]} 29. Qd8 {[%emt 0:01:44]} c4 {[%emt 0:08:45]} 30. Qe7+ {[%emt 0:03:33]} Kg8 {[%emt 0:00:55]} 31. Qd8+ {[%emt 0:01:14]} Kg7 {[%emt 0:06:38]} 32. Qe7+ {[%emt 0:00:08]} Kh6 {[%emt 0:00:33]} 33. Qf8+ {[%emt 0:00:31]} Kh5 {[%emt 0:00:16]} 34. bxc4 {[%emt 0:03:05]} bxc4 {[%emt 0:00:35]} 35. Qg8 {[%emt 0:00:56]} h6 {[%emt 0:00:44]} 36. Qb8 {[%emt 0:01:43]} c3 {[%emt 0:02:37]} 37. Qb4 {[%emt 0:04:36]} g5 {[%emt 0:06:21]} 38. Kg3 {[%emt 0:02:49]} Qc7+ {[%emt 0:02:52]} 39. f4 {[%emt 0:02:08]} c2 {[%emt 0:00:13]} 40. Qa4 {[%emt 0:00:41]} Kg6 {[%emt 0:00:47]} 41. Qb3 {[%emt 0:32:05]} Kg7 {[%emt 0:30:44]} 0-1

[Event "55th Rubinstein Memorial-C 2019"]
[Site "Polanica-Zdroj"]
[Date "2019.08.22"]
[Round "6.18"]
[White "Karnasiewicz, Robert"]
[Black "Karleszko, Karolina"]
[Result "1-0"]
[ECO "D10"]
[WhiteElo "1803"]
[BlackElo "1596"]
[Annotator "NA"]
[PlyCount "29"]
[EventDate "2019.08.17"]
[EventType "swiss"]
[EventCountry "POL"]
[SourceTitle "playchess.com"]
[Source "ChessBase"]
[SourceQuality "1"]
[TimeControl "40/5400+30:1800+30"]

1. d4 {[%emt 0:00:00]} d5 {[%emt 0:00:34]} 2. c4 {[%emt 0:00:00]} c6 {[%emt 0:00:10]} 3. cxd5 {[%emt 0:00:14]} cxd5 {[%emt 0:00:06]} 4. Nc3 {[%emt 0:00:02]} Nc6 {[%emt 0:00:23]} 5. e4 {[%emt 0:02:40]} e5 {[%emt 0:07:01]} 6. Nxd5 Nxd4 {[%emt 0:00:22]} 7. Be3 {[%emt 0:27:42]} Bc5 {[%emt 0:06:42]} 8. Rc1 {[%emt 0:07:48]} Bb6 {[%emt 0:05:20]} 9. Bxd4 {[%emt 0:06:50]} Bxd4 {[%emt 0:02:04]} 10. Nc7+ {[%emt 0:01:28]} Kf8 {[%emt 0:00:32]} 11. Nxa8 {[%emt 0:00:54]} Be6 {[%emt 0:00:33]} 12. Nc7 {[%emt 0:00:28]} Bd7 {[%emt 0:01:09]} 13. Nf3 {[%emt 0:00:27]} Bxb2 {[%emt 0:00:42]} 14. Rc2 {[%emt 0:02:52]} Nf6 {[%emt 0:00:52]} 15. Bb5 {[%emt 0:00:50]} 1-0

[Event "55th Rubinstein Memorial-C 2019"]
[Site "Polanica-Zdroj"]
[Date "2019.08.22"]
[Round "6.19"]
[White "Szydelko, Michal"]
[Black "Pisarek, Elzbieta"]
[Result "1/2-1/2"]
[ECO "B01"]
[WhiteElo "1752"]
[BlackElo "1581"]
[Annotator "NA"]
[PlyCount "72"]
[EventDate "2019.08.17"]
[EventType "swiss"]
[EventCountry "POL"]
[SourceTitle "playchess.com"]
[Source "ChessBase"]
[SourceQuality "1"]
[TimeControl "40/5400+30:1800+30"]

1. e4 {[%emt 0:00:00]} d5 {[%emt 0:00:00]} 2. exd5 {[%emt 0:00:00]} Qxd5 {[%emt 0:00:00]} 3. Nc3 {[%emt 0:00:13]} Qd8 {[%emt 0:00:00]} 4. Bc4 {[%emt 0:03:58]} g6 {[%emt 0:00:33]} 5. Nf3 {[%emt 0:01:28]} Bg7 {[%emt 0:00:30]} 6. d4 {[%emt 0:02:04]} Nf6 {[%emt 0:00:15]} 7. O-O {[%emt 0:00:19]} O-O {[%emt 0:00:12]} 8. h3 {[%emt 0:00:18]} a6 {[%emt 0:00:15]} 9. a4 {[%emt 0:00:36]} b6 {[%emt 0:00:15]} 10. Be3 {[%emt 0:01:23]} Bb7 {[%emt 0:00:11]} 11. Qe2 {[%emt 0:00:31]} Nc6 {[%emt 0:01:23]} 12. Rad1 {[%emt 0:02:37]} e6 {[%emt 0:02:45]} 13. Rfe1 {[%emt 0:10:49]} Qe7 {[%emt 0:02:32]} 14. Bg5 {[%emt 0:06:52]} Qb4 {[%emt 0:10:26]} 15. Bxf6 {[%emt 0:07:09]} Bxf6 {[%emt 0:00:16]} 16. Ne4 {[%emt 0:00:04]} Bg7 {[%emt 0:01:23]} 17. c3 {[%emt 0:00:41]} Qe7 {[%emt 0:01:15]} 18. Ng3 {[%emt 0:02:21]} Rfe8 {[%emt 0:02:00]} 19. Qd3 {[%emt 0:02:45]} Qd6 {[%emt 0:02:16]} 20. Ne4 {[%emt 0:05:34]} Qd7 {[%emt 0:07:11]} 21. Qc2 {[%emt 0:15:20]} Rad8 {[%emt 0:14:04]} 22. Neg5 {[%emt 0:06:38]} Na5 {[%emt 0:10:56]} 23. Ba2 {[%emt 0:01:00]} Bxf3 {[%emt 0:01:10]} 24. Nxf3 {[%emt 0:00:12]} Nc6 {[%emt 0:03:00]} 25. Qe2 {[%emt 0:05:37]} a5 {[%emt 0:04:22]} 26. Ng5 {[%emt 0:01:15]} Kh8 {[%emt 0:01:48]} 27. Qf3 {[%emt 0:01:32]} Rf8 {[%emt 0:08:15]} 28. Bc4 {[%emt 0:01:49]} h6 {[%emt 0:02:26]} 29. Ne4 {[%emt 0:04:55]} Ne7 {[%emt 0:02:07]} 30. b3 {[%emt 0:04:22]} Nd5 {[%emt 0:04:04]} 31. Bb5 {[%emt 0:05:26]} c6 {[%emt 0:01:25]} 32. Bf1 {[%emt 0:00:45]} Qe7 {[%emt 0:01:06]} 33. g3 {[%emt 0:00:40]} Kg8 {[%emt 0:05:58]} 34. Bg2 {[%emt 0:01:08]} Rc8 {[%emt 0:00:51]} 35. Nd2 {[%emt 0:01:01]} Qc7 {[%emt 0:00:55]} 36. Ne4 {[%emt 0:03:35]} Qe7 {[%emt 0:02:25]} 1/2-1/2

[Event "55th Rubinstein Memorial-C 2019"]
[Site "Polanica-Zdroj"]
[Date "2019.08.22"]
[Round "6.20"]
[White "Hasterok, Lukasz"]
[Black "Burdzicki, Jan"]
[Result "1/2-1/2"]
[ECO "A46"]
[WhiteElo "1531"]
[BlackElo "1716"]
[Annotator "NA"]
[PlyCount "112"]
[EventDate "2019.08.17"]
[EventType "swiss"]
[EventCountry "POL"]
[SourceTitle "playchess.com"]
[Source "ChessBase"]
[SourceQuality "1"]
[TimeControl "40/5400+30:1800+30"]

1. d4 {[%emt 0:01:27]} Nf6 {[%emt 0:00:00]} 2. Nf3 {[%emt 0:00:25]} e6 {[%emt 0:00:30]} 3. Bf4 {[%emt 0:00:32]} c5 {[%emt 0:00:06]} 4. c3 {[%emt 0:01:40]} Qb6 {[%emt 0:01:48]} 5. Qb3 {[%emt 0:03:45]} Qxb3 {[%emt 0:01:31]} 6. axb3 {[%emt 0:00:08]} Nc6 7. e3 {[%emt 0:02:39]} b6 {[%emt 0:13:56]} 8. h3 {[%emt 0:02:13]} Bb7 {[%emt 0:03:41]} 9. Nbd2 {[%emt 0:00:33]} Be7 {[%emt 0:05:31]} 10. Bd3 {[%emt 0:03:41]} O-O {[%emt 0:03:02]} 11. O-O {[%emt 0:00:24]} Na5 {[%emt 0:06:56]} 12. Ne5 {[%emt 0:21:46]} d6 {[%emt 0:05:17]} 13. Nec4 {[%emt 0:04:43]} Nxc4 {[%emt 0:00:57]} 14. bxc4 {[%emt 0:00:11]} Rfd8 {[%emt 0:08:18]} 15. Bh2 {[%emt 0:05:05]} d5 {[%emt 0:03:02]} 16. cxd5 {[%emt 0:01:11]} Bxd5 {[%emt 0:02:22]} 17. Be2 {[%emt 0:04:56]} Ne4 {[%emt 0:09:37]} 18. Nxe4 {[%emt 0:04:18]} Bxe4 {[%emt 0:00:02]} 19. f3 {[%emt 0:00:13]} Bc6 {[%emt 0:03:06]} 20. Rfd1 {[%emt 0:02:38]} f6 {[%emt 0:08:09]} 21. Bc4 {[%emt 0:02:48]} Kf7 {[%emt 0:05:16]} 22. e4 {[%emt 0:01:58]} b5 {[%emt 0:04:01]} 23. Bxe6+ {[%emt 0:05:45]} Kxe6 {[%emt 0:00:41]} 24. d5+ {[%emt 0:00:02]} Kd7 {[%emt 0:03:51]} 25. dxc6+ {[%emt 0:02:26]} Kxc6 {[%emt 0:00:01]} 26. Ra6+ {[%emt 0:02:35]} Kb7 {[%emt 0:00:01]} 27. Rda1 {[%emt 0:00:09]} c4 {[%emt 0:01:52]} 28. Kh1 {[%emt 0:02:54]} Bc5 {[%emt 0:04:55]} 29. Bg1 {[%emt 0:00:21]} Bxg1 {[%emt 0:00:50]} 30. Kxg1 {[%emt 0:00:05]} Rd2 {[%emt 0:00:44]} 31. R1a2 {[%emt 0:00:18]} Rxb2 {[%emt 0:02:17]} 32. Rxa7+ {[%emt 0:00:08]} Rxa7 {[%emt 0:00:17]} 33. Rxb2 {[%emt 0:00:05]} Kc6 {[%emt 0:00:23]} 34. Kf2 {[%emt 0:00:28]} Ra3 {[%emt 0:00:24]} 35. Rc2 {[%emt 0:00:07]} Kc5 {[%emt 0:01:53]} 36. Ke2 {[%emt 0:00:36]} Ra1 {[%emt 0:00:57]} 37. f4 {[%emt 0:02:13]} Rg1 {[%emt 0:00:24]} 38. Kf2 {[%emt 0:02:01]} Rd1 {[%emt 0:00:23]} 39. Ke2 {[%emt 0:00:48]} Rd3 {[%emt 0:01:10]} 40. Rc1 {[%emt 0:00:09]} Rg3 {[%emt 0:00:40]} 41. Kf2 {[%emt 0:30:11]} Rd3 {[%emt 0:30:03]} 42. Ke2 {[%emt 0:00:09]} Rd7 {[%emt 0:00:54]} 43. Ra1 {[%emt 0:04:16]} Re7 {[%emt 0:00:54]} 44. Ke3 {[%emt 0:00:07]} Rd7 {[%emt 0:00:16]} 45. Ke2 {[%emt 0:00:05]} Kb6 {[%emt 0:00:35]} 46. Ra2 {[%emt 0:01:00]} Rd3 {[%emt 0:00:21]} 47. Rc2 {[%emt 0:00:07]} h6 {[%emt 0:00:27]} 48. Rc1 {[%emt 0:00:42]} Kc5 {[%emt 0:00:22]} 49. Rc2 {[%emt 0:00:44]} b4 {[%emt 0:00:56]} 50. cxb4+ {[%emt 0:00:18]} Kxb4 51. Ra2 {[%emt 0:00:47]} Ra3 {[%emt 0:00:43]} 52. Rxa3 {[%emt 0:02:17]} Kxa3 53. e5 fxe5 {[%emt 0:00:42]} 54. fxe5 {[%emt 0:00:11]} c3 {[%emt 0:00:14]} 55. e6 {[%emt 0:00:29]} c2 {[%emt 0:00:02]} 56. e7 {[%emt 0:00:05]} c1=Q {[%emt 0:00:24]} 1/2-1/2

[Event "55th Rubinstein Memorial-C 2019"]
[Site "Polanica-Zdroj"]
[Date "2019.08.22"]
[Round "6.21"]
[White "Kolodziejski, Piotr"]
[Black "Karalchuk, Alieksej"]
[Result "1-0"]
[ECO "B38"]
[WhiteElo "1701"]
[BlackElo "1443"]
[Annotator "NA"]
[PlyCount "65"]
[EventDate "2019.08.17"]
[EventType "swiss"]
[EventCountry "POL"]
[SourceTitle "playchess.com"]
[Source "ChessBase"]
[SourceQuality "1"]
[TimeControl "40/5400+30:1800+30"]

1. e4 {[%emt 0:00:00]} c5 {[%emt 0:02:46]} 2. Nf3 {[%emt 0:00:00]} Nc6 {[%emt 0:00:58]} 3. d4 {[%emt 0:00:00]} cxd4 {[%emt 0:00:13]} 4. Nxd4 {[%emt 0:00:00]} g6 {[%emt 0:00:07]} 5. c4 {[%emt 0:00:40]} Bg7 {[%emt 0:00:15]} 6. Be3 {[%emt 0:00:23]} e6 {[%emt 0:04:10]} 7. Nc3 {[%emt 0:01:13]} Nge7 {[%emt 0:00:26]} 8. Be2 {[%emt 0:01:25]} O-O {[%emt 0:03:22]} 9. O-O {[%emt 0:01:58]} d5 {[%emt 0:00:23]} 10. cxd5 {[%emt 0:02:44]} exd5 {[%emt 0:02:12]} 11. exd5 {[%emt 0:00:39]} Nxd5 {[%emt 0:00:13]} 12. Nxd5 {[%emt 0:00:39]} Qxd5 {[%emt 0:00:10]} 13. Bf3 {[%emt 0:01:44]} Qd7 {[%emt 0:03:03]} 14. Nxc6 {[%emt 0:01:50]} bxc6 {[%emt 0:00:21]} 15. Qc2 {[%emt 0:02:25]} Bb7 {[%emt 0:01:51]} 16. Rad1 {[%emt 0:01:36]} Qe6 {[%emt 0:00:25]} 17. b3 {[%emt 0:00:41]} a6 {[%emt 0:01:33]} 18. Bb6 {[%emt 0:04:36]} Rfe8 {[%emt 0:02:47]} 19. g3 {[%emt 0:03:37]} Rac8 {[%emt 0:03:50]} 20. Rd3 {[%emt 0:02:53]} Qf5 {[%emt 0:03:43]} 21. Rfd1 {[%emt 0:01:16]} Qb5 {[%emt 0:01:50]} 22. Bc5 {[%emt 0:03:20]} Bf8 {[%emt 0:06:44]} 23. Bxf8 {[%emt 0:03:54]} Kxf8 {[%emt 0:00:48]} 24. Qc3 {[%emt 0:00:33]} Kg8 {[%emt 0:02:05]} 25. Rd7 {[%emt 0:00:55]} Ba8 {[%emt 0:04:46]} 26. Qf6 {[%emt 0:01:00]} Rf8 {[%emt 0:00:05]} 27. Re7 {[%emt 0:01:32]} Rce8 {[%emt 0:08:01]} 28. Rxe8 {[%emt 0:02:39]} Rxe8 {[%emt 0:00:49]} 29. Rd8 {[%emt 0:00:17]} c5 {[%emt 0:04:23]} 30. Bxa8 {[%emt 0:00:41]} Rxd8 {[%emt 0:01:21]} 31. Qxd8+ {[%emt 0:00:07]} Kg7 {[%emt 0:00:05]} 32. Bd5 {[%emt 0:00:28]} Qd3 {[%emt 0:00:33]} 33. Qd7 {[%emt 0:00:30]} 1-0

[Event "55th Rubinstein Memorial-C 2019"]
[Site "Polanica-Zdroj"]
[Date "2019.08.22"]
[Round "6.22"]
[White "Kurtycz, Maciej"]
[Black "Werner, Kacper"]
[Result "0-1"]
[ECO "B20"]
[WhiteElo "1689"]
[BlackElo "1435"]
[Annotator "NA"]
[PlyCount "66"]
[EventDate "2019.08.17"]
[EventType "swiss"]
[EventCountry "POL"]
[SourceTitle "playchess.com"]
[Source "ChessBase"]
[SourceQuality "1"]
[TimeControl "40/5400+30:1800+30"]

1. e4 {[%emt 0:00:00]} c5 {[%emt 0:00:00]} 2. Be2 {[%emt 0:00:04]} d6 {[%emt 0:00:11]} 3. f4 {[%emt 0:00:07]} Nf6 {[%emt 0:01:15]} 4. d3 {[%emt 0:00:07]} Nc6 {[%emt 0:00:12]} 5. Nf3 {[%emt 0:00:07]} e6 {[%emt 0:01:54]} 6. O-O {[%emt 0:00:20]} Be7 {[%emt 0:00:41]} 7. Qe1 {[%emt 0:00:39]} Qb6 {[%emt 0:02:51]} 8. Kh1 {[%emt 0:01:00]} Bd7 {[%emt 0:11:02]} 9. c3 {[%emt 0:02:54]} h5 {[%emt 0:14:16]} 10. Na3 {[%emt 0:03:30]} Qc7 {[%emt 0:01:24]} 11. Nc2 {[%emt 0:01:56]} e5 {[%emt 0:05:09]} 12. fxe5 {[%emt 0:00:39]} dxe5 {[%emt 0:00:13]} 13. Ne3 {[%emt 0:01:07]} Be6 {[%emt 0:01:58]} 14. Ng5 {[%emt 0:02:24]} O-O-O {[%emt 0:03:57]} 15. Nf5 {[%emt 0:01:33]} Rdg8 {[%emt 0:08:17]} 16. Be3 {[%emt 0:04:03]} b6 {[%emt 0:07:17]} 17. a4 {[%emt 0:00:53]} Kb8 {[%emt 0:02:13]} 18. Qf2 {[%emt 0:07:02]} Kb7 {[%emt 0:11:01]} 19. d4 {[%emt 0:04:04]} cxd4 {[%emt 0:00:19]} 20. cxd4 {[%emt 0:00:01]} exd4 {[%emt 0:00:12]} 21. Nxd4 {[%emt 0:00:29]} Nxd4 {[%emt 0:00:25]} 22. Bxd4 {[%emt 0:00:08]} Ng4 {[%emt 0:00:08]} 23. Bxg4 {[%emt 0:10:35]} hxg4 {[%emt 0:00:36]} 24. g3 {[%emt 0:01:38]} Bxg5 {[%emt 0:00:15]} 25. a5 {[%emt 0:00:09]} Bf6 {[%emt 0:05:28]} 26. axb6 {[%emt 0:00:10]} axb6 {[%emt 0:00:27]} 27. Rfc1 {[%emt 0:00:39]} Qd6 {[%emt 0:01:18]} 28. Bxf6 {[%emt 0:05:52]} gxf6 {[%emt 0:00:06]} 29. Qxf6 {[%emt 0:00:35]} Rc8 {[%emt 0:00:49]} 30. Rc3 {[%emt 0:06:12]} Rxc3 {[%emt 0:00:37]} 31. bxc3 {[%emt 0:01:43]} Ra8 {[%emt 0:00:29]} 32. Rxa8 {[%emt 0:01:15]} Kxa8 {[%emt 0:00:08]} 33. Qh8+ {[%emt 0:00:07]} Kb7 0-1

[Event "55th Rubinstein Memorial-C 2019"]
[Site "Polanica-Zdroj"]
[Date "2019.08.22"]
[Round "6.23"]
[White "Raczek, Krzysztof"]
[Black "Grzelak, Piotr"]
[Result "1-0"]
[ECO "C02"]
[WhiteElo "1587"]
[BlackElo "1673"]
[Annotator "NA"]
[PlyCount "61"]
[EventDate "2019.08.17"]
[EventType "swiss"]
[EventCountry "POL"]
[SourceTitle "playchess.com"]
[Source "ChessBase"]
[SourceQuality "1"]
[TimeControl "40/5400+30:1800+30"]

1. e4 e6 2. d4 d5 3. e5 c5 4. c3 Nc6 5. Nf3 Bd7 6. a3 f6 7. Bd3 Qc7 8. O-O fxe5 9. Nxe5 Nxe5 10. dxe5 Qxe5 11. Re1 Qf6 12. Qh5+ g6 13. Qxd5 O-O-O 14. Qc4 Bc6 15. Rxe6 b5 16. Qb3 c4 17. Rxf6 cxb3 18. Rxc6+ Kb7 19. Re6 Rxd3 20. Re1 a5 21. a4 b4 22. Nd2 bxc3 23. bxc3 Bg7 24. Nxb3 Bxc3 25. Nc5+ Kc6 26. Nxd3 Bxa1 27. Ne5+ Bxe5 28. Rxe5 Kd6 29. Bb2 Nf6 30. Rxa5 Rb8 31. Be5+ 1-0

[Event "55th Rubinstein Memorial-C 2019"]
[Site "Polanica-Zdroj"]
[Date "2019.08.22"]
[Round "6.24"]
[White "Bialik, Nikodem"]
[Black "Ziemski, Przemyslaw"]
[Result "1/2-1/2"]
[ECO "C44"]
[WhiteElo "1472"]
[BlackElo "1759"]
[Annotator "NA"]
[PlyCount "75"]
[EventDate "2019.08.17"]
[EventType "swiss"]
[EventCountry "POL"]
[SourceTitle "playchess.com"]
[Source "ChessBase"]
[SourceQuality "1"]
[TimeControl "40/5400+30:1800+30"]

1. e4 {[%emt 0:04:12]} e5 {[%emt 0:00:00]} 2. Nf3 {[%emt 0:00:07]} Nc6 {[%emt 0:00:00]} 3. d4 {[%emt 0:00:06]} exd4 {[%emt 0:00:26]} 4. Nxd4 {[%emt 0:00:16]} Qh4 {[%emt 0:00:45]} 5. Nf3 {[%emt 0:12:28]} Qxe4+ {[%emt 0:00:22]} 6. Be3 {[%emt 0:00:20]} Bb4+ {[%emt 0:11:04]} 7. c3 {[%emt 0:01:58]} Ba5 {[%emt 0:00:20]} 8. Nbd2 {[%emt 0:01:05]} Qe7 {[%emt 0:00:17]} 9. Bc4 {[%emt 0:01:30]} Nf6 {[%emt 0:02:37]} 10. O-O {[%emt 0:01:09]} d5 {[%emt 0:05:58]} 11. Re1 {[%emt 0:03:58]} Be6 {[%emt 0:04:12]} 12. Bb5 {[%emt 0:01:24]} O-O {[%emt 0:04:24]} 13. Qa4 {[%emt 0:02:14]} Bb6 {[%emt 0:06:26]} 14. Bxc6 {[%emt 0:04:41]} bxc6 {[%emt 0:00:42]} 15. Qxc6 {[%emt 0:08:23]} Bd7 {[%emt 0:01:11]} 16. Qxa8 {[%emt 0:02:13]} Rxa8 {[%emt 0:00:12]} 17. Bxb6 {[%emt 0:00:04]} Qd6 {[%emt 0:01:00]} 18. Bd4 {[%emt 0:00:37]} c5 {[%emt 0:03:37]} 19. Be5 {[%emt 0:01:05]} Qb6 {[%emt 0:01:27]} 20. b3 {[%emt 0:06:19]} Ng4 {[%emt 0:07:33]} 21. Bg3 {[%emt 0:01:05]} Re8 {[%emt 0:01:56]} 22. Rxe8+ {[%emt 0:00:52]} Bxe8 {[%emt 0:00:01]} 23. Re1 {[%emt 0:01:07]} Qd8 {[%emt 0:04:39]} 24. h3 {[%emt 0:01:00]} Nh6 {[%emt 0:02:55]} 25. Bd6 {[%emt 0:01:18]} f6 {[%emt 0:08:02]} 26. Bxc5 {[%emt 0:00:22]} a6 {[%emt 0:01:20]} 27. c4 {[%emt 0:01:28]} dxc4 {[%emt 0:00:33]} 28. bxc4 {[%emt 0:00:37]} Bc6 {[%emt 0:03:23]} 29. Nd4 {[%emt 0:05:18]} Qa5 {[%emt 0:02:21]} 30. N4b3 {[%emt 0:00:43]} Qc3 {[%emt 0:03:54]} 31. Re6 {[%emt 0:04:14]} Ba4 {[%emt 0:00:51]} 32. Rxa6 {[%emt 0:04:14]} Bxb3 {[%emt 0:00:14]} 33. Nxb3 {[%emt 0:01:00]} Qxc4 {[%emt 0:02:53]} 34. Rb6 {[%emt 0:01:07]} Nf5 {[%emt 0:00:30]} 35. g3 {[%emt 0:00:46]} h5 {[%emt 0:02:55]} 36. h4 {[%emt 0:01:59]} Qe2 {[%emt 0:00:11]} 37. a3 {[%emt 0:05:50]} Nxh4 {[%emt 0:01:14]} 38. gxh4 {[%emt 0:00:24]} 1/2-1/2

[Event "55th Rubinstein Memorial-C 2019"]
[Site "Polanica-Zdroj"]
[Date "2019.08.22"]
[Round "6.25"]
[White "Rakita, Efim"]
[Black "Kazmierowski, Tymon"]
[Result "1-0"]
[ECO "B95"]
[WhiteElo "1960"]
[BlackElo "1532"]
[Annotator "NA"]
[PlyCount "120"]
[EventDate "2019.08.17"]
[EventType "swiss"]
[EventCountry "POL"]
[SourceTitle "playchess.com"]
[Source "ChessBase"]
[SourceQuality "1"]
[TimeControl "40/5400+30:1800+30"]

1. e4 {[%emt 0:00:00]} c5 {[%emt 0:00:00]} 2. Nf3 {[%emt 0:00:00]} d6 {[%emt 0:00:00]} 3. d4 {[%emt 0:00:00]} cxd4 {[%emt 0:00:00]} 4. Nxd4 {[%emt 0:00:02]} Nf6 {[%emt 0:00:00]} 5. Nc3 {[%emt 0:00:25]} a6 {[%emt 0:00:00]} 6. Bg5 {[%emt 0:00:57]} e6 {[%emt 0:00:13]} 7. Be2 {[%emt 0:00:28]} Be7 {[%emt 0:00:42]} 8. Qd2 {[%emt 0:01:06]} b5 {[%emt 0:03:40]} 9. a3 {[%emt 0:00:14]} Bb7 {[%emt 0:00:36]} 10. f3 {[%emt 0:00:33]} Nbd7 {[%emt 0:02:41]} 11. O-O {[%emt 0:03:40]} O-O 12. Rfd1 {[%emt 0:08:23]} Rc8 {[%emt 0:04:16]} 13. Bf1 {[%emt 0:00:51]} d5 {[%emt 0:02:09]} 14. Bxf6 {[%emt 0:01:29]} Nxf6 {[%emt 0:04:29]} 15. e5 {[%emt 0:00:11]} Nd7 {[%emt 0:01:10]} 16. f4 {[%emt 0:00:25]} Bc5 {[%emt 0:02:09]} 17. Kh1 {[%emt 0:00:13]} Nb6 {[%emt 0:03:07]} 18. Nb3 {[%emt 0:05:17]} Qc7 {[%emt 0:04:47]} 19. Na5 {[%emt 0:02:58]} Ba8 {[%emt 0:05:24]} 20. Ne2 {[%emt 0:04:48]} Rfd8 {[%emt 0:00:36]} 21. Nd4 {[%emt 0:02:11]} Nc4 {[%emt 0:00:34]} 22. Nxc4 {[%emt 0:00:06]} dxc4 {[%emt 0:00:08]} 23. c3 {[%emt 0:00:16]} Rd7 {[%emt 0:01:48]} 24. Nxe6 {[%emt 0:04:08]} Rxd2 {[%emt 0:14:20]} 25. Nxc7 {[%emt 0:00:08]} Rxd1 {[%emt 0:00:10]} 26. Rxd1 {[%emt 0:00:08]} Bb7 {[%emt 0:00:14]} 27. Nd5 {[%emt 0:00:34]} Kf8 {[%emt 0:00:18]} 28. Be2 {[%emt 0:00:28]} Rd8 {[%emt 0:02:03]} 29. Bf3 {[%emt 0:00:11]} Bxd5 {[%emt 0:00:36]} 30. Bxd5 {[%emt 0:03:56]} Ke7 {[%emt 0:01:07]} 31. g3 {[%emt 0:00:03]} a5 {[%emt 0:02:02]} 32. Kg2 {[%emt 0:00:22]} b4 {[%emt 0:01:11]} 33. axb4 {[%emt 0:00:06]} axb4 {[%emt 0:00:03]} 34. cxb4 {[%emt 0:00:33]} Bxb4 {[%emt 0:00:06]} 35. Kf3 {[%emt 0:00:16]} c3 {[%emt 0:04:31]} 36. bxc3 {[%emt 0:00:37]} Bxc3 {[%emt 0:00:07]} 37. Ke4 {[%emt 0:01:02]} Ba5 {[%emt 0:01:27]} 38. Ra1 {[%emt 0:00:50]} Bb6 {[%emt 0:00:16]} 39. Rb1 {[%emt 0:00:25]} Rb8 {[%emt 0:00:09]} 40. Rc1 {[%emt 0:04:38]} Bd8 {[%emt 0:02:38]} 41. Rc2 {[%emt 0:31:15]} Rb6 {[%emt 0:31:14]} 42. Ra2 {[%emt 0:02:57]} Rb4+ {[%emt 0:01:58]} 43. Kf5 {[%emt 0:03:31]} Bb6 {[%emt 0:00:53]} 44. Rd2 {[%emt 0:02:23]} Rd4 {[%emt 0:01:51]} 45. Rb2 {[%emt 0:00:23]} Rxd5 {[%emt 0:01:35]} 46. Rxb6 {[%emt 0:00:11]} Ra5 {[%emt 0:00:22]} 47. Rb7+ {[%emt 0:00:16]} Kf8 {[%emt 0:00:10]} 48. h4 {[%emt 0:01:22]} Ra4 {[%emt 0:03:16]} 49. h5 {[%emt 0:00:38]} Ra6 {[%emt 0:01:58]} 50. Rb8+ {[%emt 0:00:27]} Ke7 {[%emt 0:00:13]} 51. Rh8 {[%emt 0:00:17]} g6+ {[%emt 0:05:25]} 52. Kg5 {[%emt 0:00:33]} gxh5 {[%emt 0:03:59]} 53. Rxh7 {[%emt 0:00:57]} Ra5 {[%emt 0:00:59]} 54. Kxh5 {[%emt 0:00:31]} Ke6 {[%emt 0:00:16]} 55. Rh6+ {[%emt 0:00:17]} Ke7 {[%emt 0:00:15]} 56. Rb6 {[%emt 0:00:30]} Ra3 {[%emt 0:01:18]} 57. g4 {[%emt 0:00:25]} Rh3+ {[%emt 0:00:16]} 58. Kg5 {[%emt 0:00:09]} Re3 {[%emt 0:00:15]} 59. Kf5 {[%emt 0:00:13]} Re1 {[%emt 0:00:25]} 60. Rb7+ {[%emt 0:00:05]} Kf8 {[%emt 0:00:29] Ke4} 1-0

[Event "55th Rubinstein Memorial-C 2019"]
[Site "Polanica-Zdroj"]
[Date "2019.08.22"]
[Round "6.26"]
[White "Simon, Marek"]
[Black "Grzadka, Artur"]
[Result "1/2-1/2"]
[ECO "D85"]
[WhiteElo "1879"]
[BlackElo "1512"]
[Annotator "NA"]
[PlyCount "36"]
[EventDate "2019.08.17"]
[EventType "swiss"]
[EventCountry "POL"]
[SourceTitle "playchess.com"]
[Source "ChessBase"]
[SourceQuality "1"]
[TimeControl "40/5400+30:1800+30"]

1. d4 {[%emt 0:00:00]} Nf6 {[%emt 0:00:14]} 2. c4 {[%emt 0:00:03]} g6 {[%emt 0:00:20]} 3. Nc3 {[%emt 0:00:18]} d5 {[%emt 0:00:23]} 4. cxd5 {[%emt 0:00:23]} Nxd5 {[%emt 0:00:18]} 5. e4 {[%emt 0:00:11]} Nxc3 {[%emt 0:00:10]} 6. bxc3 {[%emt 0:00:10]} Bg7 {[%emt 0:00:09]} 7. Be3 {[%emt 0:01:13]} O-O {[%emt 0:06:43]} 8. Qd2 c5 {[%emt 0:11:26]} 9. Rc1 {[%emt 0:01:37]} Qa5 {[%emt 0:05:32]} 10. Bh6 {[%emt 0:10:54]} Bxh6 {[%emt 0:01:40]} 11. Qxh6 {[%emt 0:00:02]} cxd4 {[%emt 0:09:16]} 12. Nf3 {[%emt 0:00:44]} dxc3 {[%emt 0:03:05]} 13. Ng5 {[%emt 0:01:00]} c2+ {[%emt 0:01:15]} 14. Ke2 {[%emt 0:00:09]} Qa6+ {[%emt 0:03:55]} 15. Ke3 {[%emt 0:01:41]} Qb6+ {[%emt 0:04:19]} 16. Ke2 {[%emt 0:25:45]} Qa6+ {[%emt 0:09:09]} 17. Ke3 {[%emt 0:00:14]} Qb6+ {[%emt 0:04:26]} 18. Ke2 {[%emt 0:01:12]} Qa6+ {[%emt 0:03:39]} 1/2-1/2